bitfinex/quotes_ETHUSD_20240926
["timestamp","ask_amount","ask_price","bid_price","bid_amount"]
[1727354047956,3.79291,2636.5,2635.6,6.79413]
[1727354047957,3.79326,2636.3,2635.7,3.79398]
[1727354048127,3.96437,2636.5,2635.6,4.56505]
[1727354048128,3.79349,2636.1,2635.6,4.56505]
[1727354048328,3.79349,2636.1,2635.6,0.7709]
[1727354048553,3.79349,2636.1,2635.6,4.56506]
[1727354048745,3.79346,2636.2,2635.6,4.56506]
[1727354049062,3.96526,2635.9,2635.2,3.79475]
[1727354049262,3.79399,2635.8,2635.2,3.7947]
[1727354049431,3.79399,2635.8,2635.0,0.0349216]
[1727354049760,3.79399,2635.8,2635.1,3.79482]
[1727354049761,3.79422,2635.6,2635.1,3.79482]
[1727354049921,3.79399,2635.8,2635.0,3.8298916]
[1727354049922,3.7947,2635.3,2635.0,0.0349216]
[1727354050568,3.79478,2635.2,2635.0,0.0349216]
[1727354050869,3.7947,2635.3,2635.0,0.0349216]
[1727354051242,7.58941,2635.3,2635.0,0.0349216]
[1727354051444,3.7948,2635.2,2635.0,0.0349216]
[1727354051658,3.7947,2635.3,2635.0,0.0349216]
[1727354051868,3.7944,2635.5,2635.0,0.0349216]
[1727354052224,7.58883,2635.5,2635.0,0.0349216]
[1727354052537,3.79413,2635.7,2635.0,3.8298516]
[1727354052852,3.79435,2635.5,2635.0,3.8298516]
[1727354053057,7.58878,2635.5,2635.0,0.0349216]
[1727354053265,7.58879,2635.5,2635.0,0.0349216]
[1727354053761,3.79435,2635.5,2635.0,0.0349216]
[1727354054131,8.0245469,2635.7,2635.1,3.79481]
[1727354054347,4.2303569,2635.7,2635.0,0.0349216]
[1727354054669,3.79437,2635.5,2635.0,0.0349216]
[1727354054875,3.79414,2635.7,2635.1,3.79482]
[1727354055086,3.79414,2635.7,2635.1,7.58965]
[1727354055257,3.79414,2635.7,2635.1,3.79482]
[1727354055642,3.96526,2635.9,2635.3,3.79454]
[1727354055982,3.0,2636.0,2635.0,0.0349216]
[1727354055983,3.0,2635.8,2635.0,0.0349216]
[1727354056160,3.0,2636.0,2635.1,3.79491]
[1727354056161,3.79433,2635.6,2635.1,3.79491]
[1727354056485,3.79433,2635.6,2635.0,0.0349216]
[1727354056486,3.79465,2635.3,2635.0,0.0349216]
[1727354056646,3.79492,2635.1,2635.0,0.0349216]
[1727354057051,3.79465,2635.3,2635.0,0.0349216]
[1727354057390,7.58938,2635.3,2635.0,0.0349216]
[1727354057545,3.79465,2635.3,2635.0,0.0349216]
[1727354057746,3.7948,2635.2,2635.0,0.0349216]
[1727354059566,3.79492,2635.1,2635.0,0.0349216]
[1727354059841,4.55373,2635.2,2635.0,0.0349216]
[1727354059842,3.7948,2635.2,2635.0,0.0349216]
[1727354061142,3.0,2635.5,2635.0,0.0349216]
[1727354061346,0.4714,2635.9,2635.0,0.0349216]
[1727354061652,3.7942,2635.6,2635.1,3.7949]
[1727354061855,3.7942,2635.6,2635.0,0.0349216]
[1727354061856,3.0,2635.7,2635.2,4.54733]
[1727354062050,3.0,2635.7,2635.3,3.79458]
[1727354062252,3.0,2635.7,2635.2,4.54736]
[1727354062462,3.0,2635.7,2635.2,0.7527]
[1727354062683,3.0,2635.7,2635.0,0.0349216]
[1727354062684,3.7945,2635.4,2635.0,0.0349216]
[1727354062920,3.79414,2635.7,2635.0,0.0349216]
[1727354063190,7.5894,2635.3,2635.0,0.0349216]
[1727354063357,3.79467,2635.3,2635.0,0.0349216]
[1727354063560,3.79492,2635.1,2635.0,0.0349216]
[1727354063785,6.79492,2635.1,2635.0,0.0349216]
[1727354064253,7.34492,2635.1,2635.0,0.0349216]
[1727354064600,7.51632,2635.1,2635.0,0.0349216]
[1727354064760,3.79636,2634.1,2634.0,0.0473621]
[1727354066159,3.79636,2634.1,2633.4,0.7732]
[1727354066160,3.79676,2633.9,2633.8,0.0597588]
[1727354066361,3.79642,2634.1,2633.8,0.0597588]
[1727354066362,3.79654,2634.0,2633.8,0.0597588]
[1727354066568,3.79642,2634.1,2633.8,0.0597588]
[1727354066959,3.0,2634.2,2633.8,0.0597588]
[1727354067166,6.79625,2634.2,2633.8,0.0597588]
[1727354067470,3.0,2634.2,2633.8,0.0597588]
[1727354068353,3.0,2634.4,2633.8,0.0597588]
[1727354068600,3.0,2634.4,2633.9,3.79662]
[1727354068793,0.396727,2634.5,2633.9,3.79662]
[1727354068965,3.79601,2634.4,2633.9,3.79656]
[1727354069172,0.550867,2635.3,2633.9,0.785]
[1727354069490,3.79561,2634.7,2633.9,4.58155]
[1727354069692,0.550867,2635.3,2633.9,4.58155]
[1727354069693,3.79594,2634.4,2633.9,4.58155]
[1727354070519,3.79624,2634.2,2633.9,0.785]
[1727354070677,3.79624,2634.2,2633.8,0.0597588]
[1727354070877,0.1714,2634.7,2633.9,3.7965]
[1727354071417,3.79574,2634.6,2634.1,4.60564]
[1727354071624,3.79574,2634.6,2634.2,3.79621]
[1727354071912,3.79574,2634.6,2634.1,0.8093]
[1727354072212,3.79551,2634.7,2634.1,4.60557]
[1727354072426,3.96651,2635.0,2634.5,3.79573]
[1727354072718,3.79511,2635.0,2634.5,3.79573]
[1727354072879,3.79495,2635.1,2634.5,3.79573]
[1727354073081,0.78448567,2635.0,2634.5,3.79573]
[1727354073319,3.79495,2635.1,2634.6,3.79563]
[1727354073803,3.79507,2635.0,2634.5,0.0215862]
[1727354074012,4.0499067,2635.2,2634.7,3.79538]
[1727354074175,3.0,2635.2,2634.8,3.79524]
[1727354074381,3.0,2635.2,2634.7,4.61727]
[1727354074382,3.79485,2635.2,2634.7,4.61727]
[1727354074616,3.79485,2635.2,2634.8,3.79534]
[1727354074815,3.79485,2635.2,2634.7,0.8218]
[1727354074816,3.79501,2635.1,2634.7,0.8218]
[1727354075319,4.853792,2635.2,2634.6,7.6128062]
[1727354075320,1.058942,2635.2,2634.6,0.0215862]
[1727354075535,3.79544,2634.8,2634.6,0.0215862]
[1727354075814,3.79535,2634.8,2634.6,0.0215862]
[1727354076619,3.79549,2634.7,2634.6,0.0215862]
[1727354078252,6.79549,2634.7,2634.6,0.0215862]
[1727354078540,7.871714,2634.7,2634.6,0.0215862]
[1727354078710,8.421714,2634.7,2634.6,0.0215862]
[1727354080194,10.593114,2634.7,2634.6,0.0215862]
[1727354081105,8.593114,2634.7,2634.6,0.0215862]
[1727354083841,10.593114,2634.7,2634.6,0.0215862]
[1727354085297,10.98946708,2634.7,2634.6,0.0215862]
[1727354086096,10.593114,2634.7,2634.6,0.0215862]
[1727354088735,5.593114,2634.7,2634.6,0.0215862]
[1727354089957,8.593114,2634.7,2634.6,0.0215862]
[1727354091159,3.79546,2634.8,2634.6,0.0215862]
[1727354091363,10.0,2635.0,2634.6,0.0215862]
[1727354091670,3.79523,2634.9,2634.6,0.0215862]
[1727354091873,3.79547,2634.8,2634.6,0.0215862]
[1727354092045,3.79549,2634.7,2634.6,0.0215862]
[1727354092661,6.79549,2634.7,2634.6,0.0215862]
[1727354093155,7.34549,2634.7,2634.6,0.0215862]
[1727354095491,6.79549,2634.7,2634.6,0.0215862]
[1727354095693,7.871726,2634.7,2634.6,0.0215862]
[1727354096987,14.79512,2635.0,2634.6,0.0215862]
[1727354096988,14.79516,2635.0,2634.6,0.0215862]
[1727354097153,13.79516,2635.0,2634.6,0.0215862]
[1727354097353,13.79516,2635.0,2634.6,3.8172162]
[1727354097563,10.0,2635.0,2634.6,7.6127562]
[1727354097770,10.0,2635.0,2634.7,3.79542]
[1727354098555,10.0,2635.0,2634.6,0.0215862]
[1727354098556,13.79513,2635.0,2634.6,0.0215862]
[1727354099465,10.0,2635.0,2634.6,0.0215862]
[1727354099762,10.0,2635.0,2634.7,3.79539]
[1727354099975,10.0,2635.0,2634.8,3.79528]
[1727354100177,10.0,2635.0,2634.9,0.8111]
[1727354101279,10.0,2635.0,2634.9,4.60631]
[1727354102403,9.1667,2635.0,2634.9,4.60631]
[1727354102751,8.3334,2635.0,2634.9,7.60631]
[1727354103061,5.04121321,2635.0,2634.9,9.79893056]
[1727354103483,5.04121321,2635.0,2634.9,9.24893056]
[1727354103745,5.04121321,2635.0,2634.9,8.86873056]
[1727354104580,5.04121321,2635.0,2634.9,5.86873056]
[1727354104957,5.04121321,2635.0,2634.9,6.24893056]
[1727354105715,5.04121321,2635.0,2634.9,0.8111]
[1727354106203,5.04121321,2635.0,2634.6,4.4806662]
[1727354106371,5.04121321,2635.0,2634.6,0.6850862]
[1727354106783,5.04121321,2635.0,2634.6,0.0215862]
[1727354106997,5.04121321,2635.0,2634.7,3.79549]
[1727354107155,5.04121321,2635.0,2634.8,3.79531]
[1727354107532,5.04121321,2635.0,2634.9,4.45871]
[1727354110385,5.04121321,2635.0,2634.9,7.45871]
[1727354112892,5.04121321,2635.0,2634.9,7.83891]
[1727354113337,0.7524,2636.9,2636.2,3.79319]
[1727354113643,0.7524,2636.9,2636.2,3.79323]
[1727354113839,0.0165864,2637.0,2636.2,3.79325]
[1727354113995,0.0165864,2637.0,2636.4,3.79296]
[1727354114194,0.0165864,2637.0,2636.3,3.79315]
[1727354114421,3.8088464,2637.0,2636.1,3.79339]
[1727354114633,3.8088464,2637.0,2636.0,4.45699]
[1727354114634,3.79257,2636.8,2636.0,4.45699]
[1727354114941,0.795,2636.9,2636.0,0.6635]
[1727354114942,0.458757,2636.7,2636.0,0.6635]
[1727354115136,4.58742,2636.9,2636.1,3.79339]
[1727354115711,0.795,2636.9,2636.1,3.79339]
[1727354115896,0.795,2636.9,2636.3,3.79311]
[1727354116100,0.795,2636.9,2636.5,3.79289]
[1727354116412,4.97725355,2636.9,2636.1,3.7934]
[1727354117035,3.7925,2636.8,2636.1,3.7934]
[1727354117400,3.79248,2636.8,2636.1,3.79339]
[1727354117749,1.18485355,2636.9,2636.3,3.7931]
[1727354118125,1.18485355,2636.9,2636.4,3.79296]
[1727354118531,0.795,2636.9,2636.4,3.79296]
[1727354118886,0.10353552,2637.0,2636.4,3.79296]
[1727354118887,0.10353552,2637.0,2636.4,3.79293]
[1727354119094,0.10353552,2637.0,2636.6,3.79268]
[1727354119243,0.10353552,2637.0,2636.7,3.79261]
[1727354119881,0.10353552,2637.0,2636.6,4.45618]
[1727354120068,0.10353552,2637.0,2636.3,0.6635]
[1727354120253,0.10353552,2637.0,2636.2,3.79321]
[1727354120254,3.7924,2636.9,2636.2,3.79321]
[1727354120481,0.38959355,2636.8,2636.2,3.79321]
[1727354120784,0.38959355,2636.8,2636.1,3.79338]
[1727354121087,0.10353552,2637.0,2636.4,3.79303]
[1727354121588,0.10353552,2637.0,2636.7,3.79261]
[1727354121747,0.10353552,2637.0,2636.7,3.79253]
[1727354121942,0.10353552,2637.0,2636.9,3.79233]
[1727354122447,0.0165864,2637.0,2636.9,3.79233]
[1727354123989,0.0165864,2637.0,2636.8,3.79245]
[1727354124185,0.0165864,2637.0,2636.8,3.7924]
[1727354124482,0.0165864,2637.0,2636.6,0.3802]
[1727354124696,0.8002864,2637.0,2636.2,0.6635]
[1727354124901,3.79247,2636.8,2636.2,4.4568]
[1727354125052,3.7924,2636.9,2636.3,3.79317]
[1727354125394,3.7924,2636.9,2636.2,4.4568]
[1727354125395,3.79254,2636.8,2636.2,0.6635]
[1727354125684,3.79234,2636.9,2636.2,3.79326]
[1727354125685,3.79233,2636.9,2636.2,3.79326]
[1727354126183,3.79249,2636.8,2636.2,3.79326]
[1727354126620,0.7865,2636.5,2635.8,0.6635]
[1727354126818,0.7865,2636.5,2635.8,3.7938]
[1727354126988,0.7865,2636.5,2635.9,3.79375]
[1727354127321,0.7865,2636.5,2635.8,7.58761]
[1727354127486,3.79309,2636.4,2635.6,3.79406]
[1727354127674,3.79309,2636.4,2635.7,3.79401]
[1727354128384,3.79336,2636.2,2635.2,4.4582]
[1727354128589,3.79371,2636.0,2635.3,4.24045]
[1727354128786,1.165836,2636.1,2635.2,3.7947]
[1727354128787,0.7865,2636.1,2635.5,3.79434]
[1727354129416,4.57999,2636.1,2635.3,3.79449]
[1727354129615,4.57999,2636.1,2635.4,3.79445]
[1727354129989,4.57999,2636.1,2635.3,0.758917]
[1727354129990,3.79363,2636.0,2635.3,0.758917]
[1727354130184,3.79377,2635.9,2635.2,3.79467]
[1727354130395,3.79377,2635.9,2635.2,7.58936]
[1727354130711,4.57999,2636.1,2635.2,3.79467]
[1727354130909,3.79378,2635.9,2635.0,3.79497]
[1727354131073,3.79409,2635.7,2635.1,3.79488]
[1727354131274,3.79409,2635.7,2635.0,3.79497]
[1727354131787,3.79409,2635.7,2635.0,7.58994]
[1727354131977,3.79409,2635.7,2635.0,3.79497]
[1727354132314,4.5908228,2635.7,2635.1,0.04448474]
[1727354134201,3.79444,2635.5,2635.1,0.04448474]
[1727354134648,4.5908728,2635.7,2635.0,3.79493]
[1727354134947,3.79421,2635.6,2635.1,0.04476886]
[1727354135097,3.79436,2635.5,2635.1,0.04476886]
[1727354135304,3.79436,2635.5,2634.9,3.79513]
[1727354135503,3.79436,2635.5,2634.9,4.592188]
[1727354135830,3.79414,2635.7,2635.0,3.8399037]
[1727354136148,6.79399,2635.8,2635.2,3.79477]
[1727354136307,6.79399,2635.8,2635.3,0.04455921]
[1727354136638,6.79399,2635.8,2635.0,3.79503]
[1727354136841,3.79387,2635.9,2635.4,0.0444544]
[1727354137043,3.79362,2636.0,2635.3,3.79455]
[1727354137213,3.79357,2636.1,2635.5,0.04434959]
[1727354137401,3.79379,2635.9,2635.4,0.0444544]
[1727354137623,3.79379,2635.9,2635.3,4.22001088]
[1727354137624,3.79379,2635.9,2635.6,0.0442448]
[1727354137819,3.79379,2635.9,2635.5,0.04804539]
[1727354138164,3.79396,2635.8,2635.6,0.04793186]
[1727354138365,3.79405,2635.7,2634.9,4.17534]
[1727354138550,3.79425,2635.6,2635.0,4.63377843]
[1727354139128,3.79425,2635.6,2635.0,8.42875843]
[1727354139328,3.79425,2635.6,2635.0,4.63370843]
[1727354139663,3.79407,2635.7,2635.1,3.79491]
[1727354139867,3.79407,2635.7,2635.1,4.67579184]
[1727354140047,3.79407,2635.7,2635.2,0.04147375]
[1727354140447,3.79378,2635.9,2635.2,3.83622375]
[1727354140654,3.79395,2635.8,2635.2,3.83622375]
[1727354141153,3.79395,2635.8,2635.2,7.63091375]
[1727354141469,3.79406,2635.7,2635.2,3.83616375]
[1727354141664,3.79406,2635.7,2635.2,0.04147375]
[1727354142366,4.60606,2635.7,2635.2,0.70497375]
[1727354142864,3.79422,2635.6,2635.2,0.70497375]
[1727354143055,4.60606,2635.7,2635.2,0.70497375]
[1727354143359,3.79392,2635.8,2635.2,1.53444213]
[1727354143563,3.79392,2635.8,2635.2,5.32911213]
[1727354143928,4.57638,2635.9,2635.3,3.79452]
[1727354144124,4.57638,2635.9,2635.4,0.0444544]
[1727354144346,0.7826,2635.9,2635.4,3.8388344]
[1727354144566,3.79373,2636.0,2635.5,0.6635]
[1727354144777,4.60654,2636.4,2635.8,0.6635]
[1727354144934,8.39973,2636.4,2635.9,0.043997]
[1727354145476,3.79324,2636.3,2635.9,0.043997]
[1727354145672,3.79342,2636.2,2635.9,0.043997]
[1727354145840,3.79324,2636.3,2635.9,0.043997]
[1727354146036,3.79349,2636.1,2635.9,0.043997]
[1727354146360,0.7514,2636.0,2635.9,0.043997]
[1727354146568,3.79349,2636.1,2635.6,3.79419]
[1727354146749,3.79349,2636.1,2635.7,0.04772668]
[1727354147583,3.79366,2636.0,2635.4,0.6635]
[1727354147754,3.79393,2635.8,2635.5,0.04426498]
[1727354148434,8.40958,2636.0,2635.5,0.04426498]
[1727354148639,8.40958,2636.0,2635.2,0.6635]
[1727354148640,0.840958,2635.9,2635.2,0.6635]
[1727354148941,0.752,2635.5,2635.0,3.79506]
[1727354149259,0.752,2635.5,2634.9,0.6635]
[1727354149461,0.752,2635.5,2634.7,0.6635]
[1727354149696,3.79464,2635.3,2634.7,0.6635]
[1727354150092,4.54641,2635.5,2634.7,1.11155862]
[1727354150275,0.752,2635.5,2635.0,3.79504]
[1727354150477,4.54636,2635.5,2634.8,3.79526]
[1727354151000,4.54636,2635.5,2634.8,7.59053]
[1727354151163,4.54636,2635.5,2634.8,3.79526]
[1727354151368,8.34079,2635.5,2634.8,3.79526]
[1727354151571,4.54636,2635.5,2634.9,3.79518]
[1727354151882,5.68041,2635.5,2634.8,3.79525]
[1727354152063,3.79464,2635.3,2634.7,0.6635]
[1727354152264,0.7947,2635.4,2634.6,0.0215862]
[1727354152475,3.79476,2635.3,2634.6,3.8171162]
[1727354153000,3.79443,2635.5,2635.0,0.6635]
[1727354153654,3.7947,2635.6,2635.0,0.6635]
[1727354153853,7.58895,2635.6,2635.0,0.6635]
[1727354154054,3.79435,2635.5,2635.0,0.6635]
[1727354154590,3.7945,2635.4,2635.0,0.6635]
[1727354154791,3.79435,2635.5,2635.0,0.6635]
[1727354155294,3.7945,2635.4,2635.0,0.6635]
[1727354155457,3.7947,2635.6,2635.0,0.6635]
[1727354155794,3.79437,2635.5,2635.0,0.6635]
[1727354156283,7.58879,2635.5,2635.0,0.6635]
[1727354156483,3.79456,2635.4,2635.0,0.6635]
[1727354156703,3.79437,2635.5,2635.0,0.6635]
[1727354156859,7.58883,2635.5,2635.0,0.6635]
[1727354157060,3.79454,2635.4,2635.0,0.6635]
[1727354158681,3.79464,2635.3,2635.0,0.6635]
[1727354159197,3.79464,2635.3,2634.8,4.45872]
[1727354159358,3.79446,2635.5,2634.8,5.28631462]
[1727354159562,0.7947,2635.6,2634.8,5.28631462]
[1727354159563,0.7947,2635.6,2634.8,1.49109462]
[1727354159801,3.79444,2635.5,2634.8,0.6635]
[1727354159970,3.79449,2635.4,2634.8,4.45872]
[1727354160300,3.79449,2635.4,2634.9,0.04219259]
[1727354160462,3.79471,2635.3,2634.9,0.04219259]
[1727354161402,6.79399,2635.8,2634.9,0.04219259]
[1727354161403,3.79493,2635.1,2634.9,0.04219259]
[1727354161572,3.79506,2635.0,2634.9,0.04219259]
[1727354161961,4.5654,2635.2,2634.6,0.6850862]
[1727354162180,3.79517,2635.0,2634.7,0.04106633]
[1727354162577,3.79535,2634.8,2634.7,0.04106633]
[1727354162766,4.57725,2634.8,2634.7,0.06126143]
[1727354162962,7.34535,2634.8,2634.6,0.0215862]
[1727354163291,9.241448,2634.7,2634.6,0.0215862]
[1727354165114,7.54895,2633.9,2633.1,0.6635]
[1727354166604,3.0,2633.9,2633.3,3.79747]
[1727354166812,7.59313,2634.0,2633.8,0.08950899]
[1727354167108,7.59313,2634.0,2633.8,0.0381726]
[1727354167473,3.79651,2634.0,2633.8,0.0381726]
[1727354168603,7.59349,2634.2,2633.9,0.05121238]
[1727354168930,1.664058,2634.7,2633.9,0.05121238]
[1727354168931,4.57623,2634.6,2633.9,4.51127238]
[1727354169217,4.57623,2634.6,2633.9,1.54934188]
[1727354169524,3.7959,2634.5,2633.9,5.34596188]
[1727354169878,4.57623,2634.6,2633.9,5.34596188]
[1727354170137,3.79587,2634.5,2633.9,5.34596188]
[1727354170837,3.79615,2634.3,2633.9,0.71471238]
[1727354171145,3.79608,2634.3,2633.9,0.71471238]
[1727354171464,3.79593,2634.4,2633.9,0.71471238]
[1727354172215,3.0,2634.5,2634.0,3.79649]
[1727354172409,5.79451,2635.4,2634.1,3.84724438]
[1727354172410,3.7887,2634.9,2634.1,3.84724438]
[1727354172655,3.79487,2635.2,2634.6,3.79558]
[1727354172803,3.79473,2635.3,2634.7,3.79546]
[1727354172999,3.79473,2635.3,2634.8,0.0500967]
[1727354173346,3.79481,2635.2,2634.5,3.79568]
[1727354173636,0.8003,2635.4,2634.6,0.825501]
[1727354173637,7.58996,2635.1,2634.6,0.825501]
[1727354173839,3.79493,2635.1,2634.6,0.05537902]
[1727354174843,3.79506,2635.0,2634.6,0.05537902]
[1727354175000,3.79493,2635.1,2634.6,0.05537902]
[1727354175204,3.79493,2635.1,2634.4,4.45933]
[1727354175406,3.79493,2635.1,2634.5,0.05551536]
[1727354175612,3.79514,2635.0,2634.5,0.05551536]
[1727354176346,3.79536,2634.8,2634.5,0.05551536]
[1727354176907,3.79564,2634.6,2634.5,0.05551536]
[1727354177209,3.79549,2634.7,2634.5,0.05083951]
[1727354177210,7.5911,2634.7,2634.5,0.05083951]
[1727354177434,7.5911,2634.7,2634.1,0.6635]
[1727354177641,7.59107,2634.7,2634.6,0.05071556]
[1727354177847,3.79589,2634.5,2634.1,0.6635]
[1727354178020,3.79589,2634.5,2633.8,7.6315526]
[1727354178021,3.79589,2634.5,2633.9,0.6635]
[1727354178420,3.79589,2634.5,2633.9,4.46005]
[1727354178622,3.79619,2634.3,2633.9,0.6635]
[1727354179151,3.79619,2634.3,2633.8,0.0381726]
[1727354180424,0.801,2634.4,2633.8,3.8349626]
[1727354180425,3.0,2634.4,2633.8,3.8349626]
[1727354180626,3.4634797,2634.6,2633.8,3.8349626]
[1727354180959,6.79567,2634.6,2634.0,3.7965]
[1727354181117,6.79567,2634.6,2634.1,0.6635]
[1727354181118,3.0,2634.6,2634.1,0.6635]
[1727354181638,3.0,2634.6,2634.1,4.4598]
[1727354181838,6.79564,2634.6,2634.1,0.6635]
[1727354182457,3.0,2634.6,2634.1,0.6635]
[1727354182682,3.79578,2634.5,2634.1,0.6635]
[1727354182884,3.0,2634.6,2634.1,0.6635]
[1727354183198,6.79567,2634.6,2634.1,0.6635]
[1727354183396,3.79581,2634.5,2634.1,0.6635]
[1727354183883,3.79579,2634.5,2634.1,0.6635]
[1727354184087,1.136587,2634.5,2634.1,0.6635]
[1727354184289,3.7956,2634.7,2634.2,3.79621]
[1727354184504,7.59121,2634.7,2634.1,4.45985]
[1727354184651,3.7956,2634.7,2634.3,0.05147996]
[1727354184985,3.7956,2634.7,2634.4,0.05996424]
[1727354185159,3.79559,2634.7,2634.1,0.6635]
[1727354185365,3.79559,2634.7,2634.2,0.06084149]
[1727354185366,3.79609,2634.3,2634.2,0.06084149]
[1727354185663,3.79609,2634.3,2633.8,4.4984426]
[1727354185996,3.79609,2634.3,2633.8,0.7016726]
[1727354186206,3.79609,2634.3,2633.9,0.05516652]
[1727354186984,7.62672,2634.4,2633.9,0.05516652]
[1727354187192,3.0,2634.4,2634.0,3.79648]
[1727354187392,3.0,2634.4,2634.1,0.06099303]
[1727354188152,3.79556,2634.7,2634.0,3.79641]
[1727354188353,2.38030201,2635.0,2634.4,3.79584]
[1727354188354,3.79515,2635.0,2634.4,3.79584]
[1727354188577,3.79521,2634.9,2634.5,0.06042182]
[1727354189466,1.5407899,2635.2,2634.5,0.06042182]
[1727354189467,3.79564,2634.6,2634.5,0.06042182]
[1727354189668,3.79542,2634.8,2634.5,0.06042182]
[1727354189963,7.5909,2634.8,2634.6,0.06393129]
[1727354190195,7.5909,2634.8,2634.2,4.45969]
[1727354190402,3.7955,2634.7,2634.3,0.06444261]
[1727354190581,3.7955,2634.7,2634.2,5.285294]
[1727354190582,3.79566,2634.6,2634.2,0.6635]
[1727354190904,3.79566,2634.6,2634.3,0.06444261]
[1727354191399,3.79566,2634.6,2634.4,0.06427216]
[1727354191555,3.79566,2634.6,2634.2,0.6635]
[1727354191896,3.7955,2634.7,2634.3,0.06444261]
[1727354192201,3.79565,2634.6,2634.2,0.6635]
[1727354192367,3.79565,2634.6,2634.3,0.06444261]
[1727354192574,3.79543,2634.8,2634.0,0.6635]
[1727354192897,4.62346,2635.0,2634.1,0.06478355]
[1727354193065,5.38064959,2635.2,2634.7,3.79546]
[1727354193066,3.0,2635.2,2634.7,3.79546]
[1727354193266,4.6184,2635.3,2634.7,3.79546]
[1727354193468,4.61834,2635.3,2634.8,3.85181487]
[1727354193791,3.79441,2635.5,2634.9,3.79507]
[1727354193959,0.8241,2635.9,2635.0,0.7356176]
[1727354194174,3.9317159,2636.6,2635.3,3.7945]
[1727354194175,3.7937,2636.0,2635.3,3.7945]
[1727354194400,3.79399,2635.8,2635.4,0.06242154]
[1727354194709,3.79399,2635.8,2635.2,3.79469]
[1727354194710,0.379399,2635.7,2635.2,3.79469]
[1727354194879,3.7937,2636.0,2635.0,4.45848]
[1727354194880,3.7937,2636.0,2635.5,0.07114426]
[1727354195085,3.7937,2636.0,2635.5,0.6635]
[1727354195296,4.61753,2636.2,2635.6,0.07094964]
[1727354195297,0.8241,2636.2,2635.6,0.07094964]
[1727354195477,4.61751,2636.2,2635.6,0.07094964]
[1727354195682,8.41098,2636.2,2635.6,0.07094964]
[1727354195877,3.79361,2636.1,2635.6,0.07094964]
[1727354196104,0.841112,2636.0,2635.6,0.07094964]
[1727354196268,3.0,2636.1,2635.6,0.07094964]
[1727354196471,3.79365,2636.0,2635.6,0.07094964]
[1727354196905,3.0,2636.1,2635.6,0.07094964]
[1727354197282,6.79349,2636.1,2635.6,0.07094964]
[1727354197476,3.79378,2635.9,2635.6,0.07094964]
[1727354198616,3.79392,2635.8,2635.6,0.07094964]
[1727354198775,3.79392,2635.8,2635.2,4.45824]
[1727354199116,7.58745,2636.0,2635.3,3.86615355]
[1727354199419,3.0,2636.2,2635.7,0.6635]
[1727354199578,3.0,2636.0,2635.7,0.6635]
[1727354200518,3.79328,2636.3,2635.8,3.79387]
[1727354200688,3.79284,2636.6,2635.9,3.7937]
[1727354201019,0.0381726,2637.0,2635.3,3.7946]
[1727354201020,3.79264,2636.7,2636.3,0.6635]
[1727354201174,3.79254,2636.8,2636.3,0.6635]
[1727354201374,7.58511,2636.8,2636.3,0.6635]
[1727354201670,7.58514,2636.8,2636.3,0.6635]
[1727354201849,0.758514,2636.7,2636.3,0.6635]
[1727354202159,3.79265,2636.7,2636.3,0.6635]
[1727354202345,3.0,2636.6,2636.3,0.6635]
[1727354202753,3.79305,2636.4,2635.8,0.6635]
[1727354203057,3.79302,2636.5,2635.8,4.45729]
[1727354203366,3.79305,2636.4,2635.8,0.6635]
[1727354204029,3.79336,2636.2,2635.8,0.6635]
[1727354205564,3.79336,2636.2,2635.4,3.79441]
[1727354205565,0.8275,2636.1,2635.4,3.79441]
[1727354205766,1.206836,2636.1,2635.4,3.79441]
[1727354205973,0.8275,2636.1,2635.4,3.79441]
[1727354206483,3.79365,2636.0,2635.3,0.6635]
[1727354206957,0.8275,2636.1,2635.3,0.6635]
[1727354206958,3.79379,2635.9,2635.3,0.6635]
[1727354207137,4.255919,2635.9,2635.3,0.6635]
[1727354207352,3.79392,2635.8,2635.3,0.6635]
[1727354207541,8.049819,2635.9,2635.3,0.6635]
[1727354207778,3.79397,2635.8,2635.3,0.6635]
[1727354208084,3.79434,2635.5,2635.0,0.6635]
[1727354208252,3.79406,2635.7,2635.0,0.6635]
[1727354208445,3.79406,2635.7,2635.0,4.45855]
[1727354208869,0.8049889,2635.8,2635.0,4.45855]
[1727354209123,3.79406,2635.7,2635.0,4.45855]
[1727354209255,8.049909,2635.9,2635.1,3.7949]
[1727354209459,3.0,2635.8,2635.1,3.7949]
[1727354209681,3.0,2635.8,2635.2,3.7947]
[1727354209879,6.7937,2636.0,2635.3,4.45805]
[1727354211040,4.62108,2636.1,2635.3,4.45805]
[1727354211041,3.79343,2636.2,2635.4,3.79449]
[1727354211388,3.7934,2636.2,2635.5,3.79433]
[1727354211881,4.62924,2636.2,2635.5,3.79433]
[1727354212084,4.56482,2636.4,2635.7,3.794]
[1727354212595,3.0,2636.3,2635.7,3.794]
[1727354212912,4.55311,2636.7,2636.0,0.6635]
[1727354213070,3.79271,2636.7,2636.0,0.6635]
[1727354213258,7.58545,2636.7,2636.0,0.6635]
[1727354213593,3.79288,2636.6,2636.0,0.6635]
[1727354214158,3.79288,2636.6,2636.0,4.45712]
[1727354214381,3.79279,2636.6,2636.0,5.282199]
[1727354214586,3.79279,2636.6,2636.0,4.45712]
[1727354215057,3.79271,2636.7,2636.0,4.45712]
[1727354215655,7.58544,2636.7,2636.0,4.45712]
[1727354215857,3.79271,2636.7,2636.0,5.320238]
[1727354216688,7.58545,2636.7,2636.0,5.320238]
[1727354216998,3.0,2636.9,2636.0,5.320238]
[1727354216999,3.79292,2636.5,2636.0,0.6635]
[1727354217209,3.0,2636.9,2636.0,0.6635]
[1727354217499,3.0,2636.9,2636.1,3.86933576]
[1727354217702,3.0,2636.9,2636.3,3.79318]
[1727354217872,3.0,2636.9,2636.3,4.62578158]